bitfinex/quotes_SOLUSD_20251119
["timestamp","ask_amount","ask_price","bid_price","bid_amount"]
[1763555932324,0.67,138.68,138.64,2.13743595]
[1763555932516,0.67,138.68,138.64,2.64743595]
[1763555932824,0.67,138.68,138.64,2.13743595]
[1763555933121,0.67,138.68,138.64,2.64743595]
[1763555934926,0.67,138.68,138.64,6.07141712]
[1763555935820,0.67,138.68,138.64,0.51]
[1763555935993,0.67,138.68,138.64,6.07141712]
[1763555936822,5.56141712,138.67,138.62,7.79141712]
[1763555937118,5.56141712,138.66,138.61,5.56141712]
[1763555937296,5.56141712,138.66,138.61,1.72]
[1763555937498,0.67,138.65,138.61,7.79141712]
[1763555938316,0.67,138.65,138.62,6.07141712]
[1763555938516,5.56141712,138.67,138.63,5.56141712]
[1763555938721,0.67,138.66,138.63,5.56141712]
[1763555940922,0.67,138.66,138.62,5.56141712]
[1763555941307,6.23141712,138.66,138.61,5.56141712]
[1763555941621,6.23141712,138.66,138.59,5.56141712]
[1763555941622,5.56141712,138.64,138.59,5.56141712]
[1763555941823,0.67,138.65,138.59,5.56141712]
[1763555942131,5.56141712,138.63,138.57,0.51]
[1763555942315,0.67,138.62,138.58,5.56141712]
[1763555942506,0.67,138.62,138.57,6.07141712]
[1763555942708,6.23141712,138.62,138.57,5.56141712]
[1763555943221,0.67,138.61,138.57,5.56141712]
[1763555943536,0.67,138.61,138.58,5.56141712]
[1763555945925,0.67,138.61,138.56,0.51]
[1763555945926,6.23141712,138.61,138.56,5.56141712]
[1763555946310,0.67,138.6,138.56,5.56141712]
[1763555946506,0.67,138.6,138.55,25.40237712]
[1763555946507,6.23141712,138.6,138.55,25.40237712]
[1763555946927,0.67,138.59,138.55,25.40237712]
[1763555947312,0.67,138.59,138.56,5.56141712]
[1763555949314,0.216202,138.59,138.56,6.28141712]
[1763555950415,5.56141712,138.61,138.56,6.28141712]
[1763555951037,9.30623667,138.62,138.57,9.30623667]
[1763555951416,0.67,138.61,138.57,9.30623667]
[1763555952228,9.97623667,138.61,138.56,10.02623667]
[1763555952713,0.67,138.6,138.56,10.02623667]
[1763555954615,27.90978769,138.65,138.57,0.72]
[1763555954917,0.67,138.64,138.61,9.30623667]
[1763555955114,0.67,138.64,138.6,9.30623667]
[1763555956637,9.97623667,138.64,138.6,9.30623667]
[1763555956841,22.13011197,138.64,138.6,3.33915197]
[1763555957034,0.67,138.63,138.6,3.33915197]
[1763555957945,0.67,138.63,138.6,4.05915197]
[1763555958149,21.46011197,138.65,138.61,3.33915197]
[1763555958355,0.67,138.63,138.61,3.33915197]
[1763555958561,0.67,138.66,138.62,4.05915197]
[1763555958737,3.33915197,138.69,138.64,3.33915197]
[1763555958936,0.67,138.67,138.64,3.33915197]
[1763555961253,21.46011197,138.66,138.61,3.33915197]
[1763555961453,0.67,138.67,138.58,0.69]
[1763555961454,3.33915197,138.65,138.58,0.69]
[1763555961666,3.33915197,138.64,138.59,3.33915197]
[1763555962263,0.66,138.63,138.6,4.02915197]
[1763555962649,0.66,138.65,138.61,3.33915197]
[1763555962855,3.99915197,138.67,138.62,3.33915197]
[1763555963146,3.99915197,138.67,138.62,4.02915197]
[1763555963347,0.66,138.66,138.62,4.02915197]
[1763555963742,0.66,138.66,138.63,3.33915197]
[1763555963931,0.66,138.66,138.62,4.02915197]
[1763555964137,0.66,138.66,138.62,3.33915197]
[1763555965562,22.12011197,138.66,138.61,3.33915197]
[1763555966066,0.67,138.65,138.61,3.33915197]
[1763555966469,0.67,138.65,138.61,3.99915197]
[1763555966649,0.67,138.65,138.61,0.66]
[1763555966848,0.67,138.65,138.61,3.33915197]
[1763555967164,0.67,138.65,138.61,3.99915197]
[1763555967364,0.67,138.65,138.59,1.72]
[1763555967365,18.79096,138.66,138.62,3.99915197]
[1763555967583,0.67,138.66,138.63,3.33915197]
[1763555967747,3.33915197,138.67,138.62,3.99915197]
[1763555968139,0.67,138.66,138.62,3.99915197]
[1763555968672,21.46011197,138.69,138.64,3.33915197]
[1763555968877,22.13011197,138.69,138.65,3.33915197]
[1763555969082,18.79096,138.69,138.65,3.33915197]
[1763555969250,0.67,138.68,138.65,3.33915197]
[1763555969449,0.67,138.68,138.65,3.99915197]
[1763555969671,18.12096,138.69,138.65,3.99915197]
[1763555969964,0.67,138.68,138.65,3.33915197]
[1763555970169,0.67,138.69,138.66,3.33915197]
[1763555970739,0.67,138.69,138.66,3.99915197]
[1763555971165,23.18011197,138.71,138.67,3.99915197]
[1763555971166,20.51096,138.71,138.67,3.99915197]
[1763555971349,0.67,138.7,138.66,3.33915197]
[1763555971743,0.67,138.7,138.66,3.99915197]
[1763555972145,3.33915197,138.69,138.64,3.33915197]
[1763555972347,3.33915197,138.68,138.63,3.99915197]
[1763555972552,3.33915197,138.68,138.62,18.12096]
[1763555972553,3.33915197,138.67,138.62,3.33915197]
[1763555972757,4.00915197,138.67,138.62,3.33915197]
[1763555972945,0.67,138.66,138.62,3.99915197]
[1763555975259,0.67,138.66,138.63,3.33915197]
[1763555978365,0.67,138.66,138.61,0.66]
[1763555978566,0.67,138.66,138.63,3.33915197]
[1763555978765,0.67,138.66,138.62,3.33915197]
[1763555979260,0.67,138.66,138.62,3.99915197]
[1763555979772,0.67,138.66,138.61,3.33915197]
[1763555979773,4.00915197,138.66,138.61,3.33915197]
[1763555980176,0.67,138.65,138.61,3.33915197]
[1763555980682,0.67,138.65,138.61,3.99915197]
[1763555982163,0.67,138.65,138.62,3.33915197]
[1763555984069,0.67,138.65,138.62,3.99915197]
[1763555984268,0.67,138.65,138.62,3.33915197]
[1763555985883,0.67,138.65,138.61,3.99915197]
[1763555988893,4.00915197,138.67,138.62,3.99915197]
[1763555989066,0.67,138.66,138.62,3.99915197]
[1763555989272,0.67,138.66,138.63,0.66]
[1763555989473,0.67,138.66,138.62,3.99915197]
[1763555989773,0.67,138.66,138.62,0.66]
[1763555989986,23.87011197,138.68,138.63,4.04915197]
[1763555990174,0.69,138.68,138.64,3.33915197]
[1763555990375,0.69,138.68,138.64,4.04915197]
[1763555990574,18.81096,138.68,138.64,4.04915197]
[1763555990770,18.81096,138.68,138.65,0.71]
[1763555990976,0.69,138.68,138.65,4.04915197]
[1763555991568,18.12096,138.7,138.65,4.04915197]
[1763555991889,0.69,138.69,138.65,0.71]
[1763555992086,0.69,138.69,138.65,4.04915197]
[1763555992791,4.02915197,138.69,138.64,3.33915197]
[1763555993104,3.33915197,138.68,138.61,0.71]
[1763555993264,3.33915197,138.68,138.63,3.33915197]
[1763555993265,4.02915197,138.68,138.63,3.33915197]
[1763555993465,4.02915197,138.67,138.62,3.33915197]
[1763555993991,0.69,138.66,138.62,4.04915197]
[1763555994566,0.69,138.66,138.62,3.33915197]
[1763555994766,0.69,138.66,138.62,4.04915197]
[1763555994967,0.69,138.66,138.62,3.33915197]
[1763555995162,0.69,138.66,138.62,4.04915197]
[1763555995368,0.69,138.66,138.63,3.33915197]
[1763555997893,0.69,138.66,138.63,4.04915197]
[1763555998788,0.69,138.66,138.63,3.33915197]
[1763556000266,0.69,138.66,138.62,4.04915197]
[1763556000482,4.02915197,138.66,138.61,3.33915197]
[1763556000690,3.33915197,138.65,138.6,0.71]
[1763556000878,0.69,138.64,138.6,4.04915197]
[1763556001275,0.69,138.64,138.6,3.33915197]
[1763556001483,4.02915197,138.67,138.62,3.33915197]
[1763556001671,4.02915197,138.67,138.61,0.71]
[1763556001672,0.69,138.67,138.63,3.33915197]
[1763556001992,8.19247167,138.69,138.65,3.33915197]
[1763556002198,0.69,138.69,138.65,3.33915197]
[1763556002375,0.69,138.69,138.65,4.04915197]
[1763556002997,0.69,138.69,138.65,3.33915197]
[1763556003192,0.69,138.71,138.67,3.33915197]
[1763556003409,0.69,138.7,138.67,3.33915197]
[1763556003694,0.69,138.7,138.67,4.04915197]
[1763556004197,5.74544173,138.72,138.68,3.33915197]
[1763556004494,0.2,138.72,138.68,3.33915197]
[1763556004674,0.69,138.71,138.68,3.33915197]
[1763556006913,0.2,138.72,138.69,3.33915197]
[1763556007211,0.89,138.72,138.69,4.04915197]
[1763556007516,0.2,138.72,138.7,4.04915197]
[1763556007725,0.2,138.72,138.71,3.33915197]
[1763556008085,0.2,138.72,138.7,4.04915197]
[1763556008918,0.2,138.72,138.7,3.33915197]
[1763556009133,0.69,138.71,138.68,3.33915197]
[1763556009317,0.69,138.71,138.68,4.04915197]
[1763556010502,0.69,138.71,138.68,3.33915197]
[1763556012895,0.69,138.71,138.65,18.12096]
[1763556013115,0.69,138.71,138.65,2.13459499]
[1763556013325,2.13459499,138.7,138.65,2.13459499]
[1763556013499,0.69,138.69,138.66,2.13459499]
[1763556013892,1.92,138.72,138.66,2.13459499]
[1763556014125,0.69,138.71,138.68,2.13459499]
[1763556014720,0.69,138.71,138.67,2.13459499]
[1763556014925,2.82459499,138.71,138.66,2.13459499]
[1763556015399,0.69,138.7,138.66,2.13459499]
[1763556015598,2.82459499,138.7,138.65,3.85459499]
[1763556016021,0.69,138.69,138.65,4.56459499]
[1763556019004,2.82459499,138.69,138.64,2.13459499]
[1763556019202,2.13459499,138.68,138.63,2.84459499]
[1763556019398,2.82459499,138.68,138.63,2.84459499]
[1763556019606,0.69,138.67,138.63,2.84459499]
[1763556019800,0.69,138.67,138.64,2.13459499]
[1763556020000,0.69,138.67,138.64,2.80459499]
[1763556020406,0.69,138.67,138.65,2.13459499]
[1763556020911,0.69,138.67,138.64,2.13459499]
[1763556021721,0.69,138.67,138.64,2.80459499]
[1763556021923,0.69,138.67,138.64,2.13459499]
[1763556028933,0.68,138.69,138.65,2.13459499]
[1763556029244,0.68,138.68,138.65,2.13459499]
[1763556030444,2.81459499,138.68,138.63,3.85459499]
[1763556030941,2.81459499,138.67,138.62,2.13459499]
[1763556031426,0.68,138.66,138.62,2.13459499]
[1763556031630,2.81459499,138.66,138.61,4.56459499]
[1763556032145,0.68,138.65,138.61,4.56459499]
[1763556032543,0.68,138.65,138.62,2.84459499]
[1763556032857,18.12096,138.68,138.64,2.13459499]
[1763556033027,18.80096,138.68,138.64,2.84459499]
[1763556033423,0.68,138.67,138.64,2.84459499]
[1763556033751,0.68,138.68,138.65,2.13459499]
[1763556034252,0.68,138.69,138.66,2.13459499]
[1763556034424,0.68,138.69,138.65,2.84459499]
[1763556035123,0.68,138.69,138.66,2.84459499]
[1763556036541,0.68,138.69,138.66,2.13459499]
[1763556036747,0.68,138.69,138.65,2.13459499]
[1763556037155,0.68,138.69,138.65,2.84459499]
[1763556037338,0.68,138.69,138.66,2.13459499]
[1763556037538,2.13459499,138.71,138.66,2.84459499]
[1763556037734,0.68,138.71,138.67,2.84459499]
[1763556037936,0.68,138.7,138.67,2.13459499]
[1763556038739,0.68,138.7,138.67,2.84459499]
[1763556039634,0.68,138.71,138.68,2.13459499]
[1763556039839,0.68,138.71,138.67,0.71]
[1763556039840,0.68,138.71,138.67,2.13459499]
[1763556040048,2.81459499,138.71,138.66,2.13459499]
[1763556040267,2.81459499,138.71,138.67,2.13459499]
[1763556040268,0.68,138.71,138.67,2.13459499]
[1763556040483,0.68,138.71,138.66,2.84459499]
[1763556040484,0.68,138.7,138.66,2.84459499]
[1763556040637,0.68,138.7,138.66,2.13459499]
[1763556041150,0.68,138.7,138.65,2.84459499]
[1763556041935,2.81459499,138.7,138.65,2.84459499]
[1763556042132,0.68,138.69,138.65,2.84459499]
[1763556042364,0.68,138.69,138.65,2.13459499]
[1763556042658,0.68,138.69,138.65,2.84459499]
[1763556043065,0.68,138.69,138.66,2.13459499]
[1763556043767,0.68,138.69,138.66,2.84459499]
[1763556044150,0.68,138.71,138.67,2.84459499]
[1763556044354,0.68,138.71,138.68,2.13459499]
[1763556051074,4.66086476,138.72,138.69,2.13459499]
[1763556051381,4.66086476,138.72,138.69,2.81459499]
[1763556051583,0.69,138.71,138.69,2.13459499]
[1763556052852,3.97086476,138.72,138.69,2.81459499]
[1763556053057,0.2,138.72,138.7,2.13459499]
[1763556053569,0.2,138.72,138.7,2.81459499]
[1763556054079,0.2,138.72,138.68,19.19104578]
[1763556054080,0.2,138.72,138.71,2.81459499]
[1763556054254,0.2,138.72,138.71,2.13459499]
[1763556058195,0.2,138.72,138.71,2.81459499]
[1763556059486,0.2,138.72,138.71,2.13459499]
[1763556061477,0.2,138.72,138.71,4.53459499]
[1763556061876,0.2,138.72,138.71,7.42445519]
[1763556067398,0.2,138.75,138.71,51.08190839]
[1763556067604,0.2,138.75,138.74,2.13459499]
[1763556067904,0.2,138.75,138.74,4.53459499]
[1763556068277,0.2,138.75,138.74,7.4236203]
[1763556071221,0.2,138.75,138.74,2.88902531]
[1763556071385,0.2,138.75,138.74,6.7436203]
[1763556072320,0.2,138.75,138.74,7.4236203]
[1763556074891,0.2,138.75,138.74,8.61972693]
[1763556079214,0.2,138.75,138.74,18.40855462]
[1763556084920,0.86,138.75,138.74,22.72998531]
[1763556085117,0.2,138.75,138.74,26.06068693]
[1763556085933,0.86,138.75,138.74,7.91972693]
[1763556086632,0.2,138.75,138.74,7.91972693]
[1763556090634,0.86,138.75,138.74,7.91972693]
[1763556090837,0.86,138.75,138.74,6.21972693]
[1763556091013,0.86,138.75,138.73,1.7]
[1763556091207,0.66,138.74,138.73,5.03070162]
[1763556092632,0.66,138.74,138.73,1.7]
[1763556092814,0.66,138.74,138.73,5.03070162]
[1763556095031,0.66,138.74,138.73,3.33070162]
[1763556095938,0.66,138.74,138.72,5.03070162]
[1763556097310,0.66,138.74,138.72,1.7]
[1763556099037,0.66,138.74,138.71,3.33070162]
[1763556099635,3.99070162,138.74,138.68,3.33070162]
[1763556099840,3.33070162,138.73,138.68,5.03070162]
[1763556100026,3.99070162,138.73,138.68,5.03070162]
[1763556100229,0.66,138.72,138.68,5.03070162]
[1763556102842,0.66,138.72,138.7,3.33070162]
[1763556103728,0.66,138.72,138.69,3.33070162]
[1763556104040,0.66,138.72,138.71,3.33070162]
[1763556104424,0.66,138.72,138.7,3.33070162]
[1763556108737,0.66,138.72,138.69,11.12882769]
[1763556108934,0.66,138.72,138.69,3.33070162]
[1763556109134,0.66,138.72,138.69,5.05070162]
[1763556110927,0.66,138.72,138.69,3.33070162]
[1763556111847,0.66,138.72,138.7,3.33070162]
[1763556112535,0.66,138.72,138.69,3.33070162]
[1763556113446,0.66,138.72,138.69,21.45166162]
[1763556114950,0.66,138.72,138.7,3.33070162]
[1763556115449,0.66,138.72,138.7,18.17023093]
[1763556116653,0.66,138.72,138.7,3.33070162]
[1763556116851,0.66,138.72,138.69,3.33070162]
[1763556117058,0.66,138.72,138.69,21.45166162]
[1763556118266,0.66,138.72,138.69,3.33070162]
[1763556118567,0.66,138.72,138.69,21.65166162]
[1763556120354,0.66,138.72,138.68,2.4]
[1763556120355,0.66,138.72,138.68,3.33070162]
[1763556120556,0.66,138.72,138.68,5.73070162]
[1763556120855,0.66,138.72,138.68,5.05070162]
[1763556121058,0.66,138.72,138.69,3.33070162]
[1763556122069,0.66,138.72,138.68,5.05070162]
[1763556122972,0.66,138.72,138.69,3.33070162]
[1763556126070,0.66,138.72,138.68,5.05070162]
[1763556128591,3.99070162,138.72,138.68,1.72]
[1763556128783,0.66,138.72,138.68,5.05070162]
[1763556128966,0.68,138.71,138.68,5.05070162]
[1763556130590,0.68,138.71,138.68,3.33070162]
[1763556132063,0.68,138.74,138.7,3.33070162]
[1763556132476,0.2,138.75,138.72,3.33070162]
[1763556132684,0.88,138.75,138.74,3.33070162]
[1763556134075,0.88,138.75,138.73,5.05070162]
[1763556134999,0.2,138.75,138.73,5.05070162]
[1763556135297,0.68,138.74,138.73,5.05070162]
[1763556135796,0.2,138.75,138.73,3.33070162]
[1763556135973,0.88,138.75,138.72,3.33070162]
[1763556136569,0.68,138.74,138.72,3.33070162]
[1763556136795,0.68,138.74,138.72,2.13336578]
[1763556137291,0.68,138.74,138.71,3.83336578]
[1763556137502,0.68,138.74,138.71,1.7]
[1763556138404,0.68,138.74,138.71,3.83336578]
[1763556142996,0.68,138.74,138.7,2.13336578]
[1763556143203,2.81336578,138.74,138.69,6.72385246]
[1763556143575,0.7,138.73,138.69,6.72385246]
[1763556143774,0.7,138.73,138.69,7.41385246]
[1763556143977,0.7,138.73,138.7,2.13336578]
[1763556144191,0.7,138.73,138.71,2.13336578]
[1763556144390,0.7,138.73,138.7,2.13336578]
[1763556144979,0.7,138.73,138.7,2.85336578]
[1763556145378,0.7,138.73,138.71,2.13336578]
[1763556147712,2.83336578,138.73,138.69,6.72385246]
[1763556147891,2.13336578,138.72,138.69,1.7]
[1763556148091,2.82336578,138.72,138.68,10.6668289]
[1763556148300,0.69,138.71,138.68,8.53346312]
[1763556148499,0.69,138.71,138.67,3.83336578]
[1763556148705,0.69,138.71,138.67,12.80019468]
[1763556148904,2.13336578,138.7,138.67,10.6668289]
[1763556149211,0.69,138.71,138.67,2.13336578]
[1763556149386,0.69,138.7,138.67,2.13336578]
[1763556150810,0.69,138.7,138.68,2.13336578]
[1763556151399,0.69,138.72,138.68,2.85336578]
[1763556152614,0.69,138.72,138.68,2.13336578]
[1763556153887,0.69,138.72,138.69,2.85336578]
[1763556154092,0.2,138.75,138.69,2.85336578]
[1763556154093,0.69,138.73,138.7,2.13336578]
[1763556154494,0.69,138.73,138.7,2.85336578]
[1763556158222,0.89,138.75,138.72,2.13336578]
[1763556158398,0.89,138.75,138.73,2.13336578]
[1763556158725,0.2,138.75,138.73,2.13336578]
[1763556158909,0.89,138.75,138.73,2.13336578]
[1763556159225,0.2,138.75,138.73,2.13336578]
[1763556160217,0.89,138.75,138.73,2.13336578]
[1763556165132,0.2,138.75,138.74,2.13336578]
[1763556165318,0.2,138.75,138.74,2.85336578]
[1763556165518,0.2,138.75,138.74,22.87432578]
[1763556172633,0.2,138.75,138.74,20.02096]
[1763556172822,0.2,138.75,138.74,23.85432578]
[1763556173333,0.2,138.75,138.74,24.52432578]
[1763556173837,0.2,138.75,138.74,23.85432578]
[1763556177134,0.2,138.75,138.74,59.64184015]
[1763556177730,0.2,138.79,138.74,59.64184015]
[1763556178044,0.89,138.79,138.78,2.13336578]
[1763556178541,0.89,138.79,138.78,5.02218244]
[1763556179915,0.89,138.79,138.78,2.88881666]
[1763556180256,3.02336578,138.79,138.75,2.13336578]
[1763556180437,3.02336578,138.79,138.76,2.88923399]
[1763556180438,0.69,138.78,138.76,2.88923399]
[1763556180632,0.69,138.78,138.75,2.13336578]
[1763556180816,0.69,138.78,138.75,5.02280847]
[1763556183041,0.69,138.78,138.75,2.88944269]
[1763556183550,0.69,138.78,138.75,5.02280847]
[1763556183847,0.69,138.78,138.75,2.88944269]
[1763556185434,0.69,138.78,138.74,2.13336578]
[1763556185635,0.69,138.78,138.74,5.02301721]
[1763556187934,0.69,138.78,138.74,2.13336578]
[1763556188154,0.69,138.78,138.74,5.02301721]
[1763556193252,0.69,138.78,138.75,2.13336578]
[1763556195261,0.69,138.78,138.74,5.02301721]
[1763556197054,0.69,138.78,138.74,6.22188609]
[1763556197758,0.69,138.78,138.7,3.33223466]
[1763556197759,3.33223466,138.75,138.7,3.33223466]
[1763556197937,21.45319466,138.75,138.7,3.53223466]
[1763556198262,0.69,138.74,138.69,3.33223466]
[1763556198454,0.69,138.74,138.7,3.33223466]
[1763556199043,0.69,138.76,138.73,3.33223466]
[1763556199558,0.69,138.78,138.75,3.33223466]
[1763556200959,0.69,138.78,138.74,3.33223466]
[1763556202564,4.45898611,138.78,138.74,3.33223466]
[1763556202765,0.71,138.77,138.74,3.33223466]
[1763556204534,0.71,138.77,138.74,4.00223466]
[1763556204740,0.71,138.77,138.74,3.33223466]
[1763556211369,0.71,138.77,138.75,3.33223466]
[1763556212871,0.71,138.77,138.73,0.72]
[1763556213047,0.71,138.77,138.74,3.33223466]
[1763556216270,0.71,138.77,138.74,4.05223466]
[1763556216461,0.71,138.77,138.74,3.33223466]
[1763556216658,0.71,138.77,138.74,4.05223466]
[1763556216970,0.71,138.77,138.74,8.10446932]
[1763556218178,0.71,138.77,138.75,3.33223466]
[1763556219057,0.71,138.77,138.74,3.33223466]
[1763556219270,0.71,138.77,138.73,8.10446932]
[1763556219579,0.71,138.77,138.73,26.22542932]
[1763556220069,0.71,138.77,138.71,21.45319466]
[1763556220070,3.33223466,138.76,138.71,21.45319466]
[1763556220273,0.72,138.76,138.73,3.33223466]
[1763556220578,0.72,138.76,138.73,4.05223466]
[1763556220978,0.72,138.77,138.74,4.05223466]
[1763556221175,0.72,138.76,138.74,3.33223466]
[1763556221660,0.72,138.78,138.74,4.05223466]
[1763556222268,0.72,138.78,138.74,9.00106528]
[1763556223256,0.72,138.78,138.74,3.33223466]
[1763556223753,0.72,138.78,138.73,32.69852409]
[1763556223754,4.05223466,138.78,138.73,21.45319466]
[1763556223968,4.05223466,138.78,138.73,29.84192813]
[1763556224168,0.72,138.77,138.73,29.84192813]
[1763556224582,0.72,138.77,138.73,11.72096813]
[1763556225152,0.72,138.77,138.73,3.33223466]
[1763556225356,0.72,138.77,138.73,11.52096813]
[1763556227364,4.05223466,138.77,138.72,5.03223466]
[1763556227576,4.05223466,138.77,138.71,3.33223466]
[1763556227881,21.45319466,138.75,138.7,3.33223466]
[1763556228258,0.72,138.74,138.7,4.05223466]
[1763556229565,0.72,138.74,138.71,3.33223466]
[1763556230196,18.12096,138.75,138.71,4.03223466]
[1763556230374,0.68,138.75,138.72,3.33223466]
[1763556231556,0.68,138.75,138.72,4.03223466]
[1763556232294,0.68,138.75,138.72,3.33223466]
[1763556232695,21.45319466,138.77,138.73,4.03223466]
[1763556232696,0.68,138.76,138.73,4.03223466]
[1763556233811,0.68,138.76,138.73,3.33223466]
[1763556234209,0.68,138.76,138.73,4.03223466]
[1763556234511,0.68,138.77,138.74,4.03223466]
[1763556235081,0.68,138.77,138.69,2.42103251]
[1763556235082,0.68,138.77,138.73,3.33223466]
[1763556235309,0.68,138.77,138.72,3.33223466]
[1763556235310,4.01223466,138.77,138.72,3.33223466]
[1763556235689,0.68,138.76,138.72,3.33223466]
[1763556236106,0.68,138.76,138.72,4.03223466]
[1763556236783,0.68,138.76,138.72,3.33223466]
[1763556236988,0.68,138.77,138.74,3.33223466]
[1763556237188,23.35319466,138.79,138.74,3.33223466]
[1763556237388,0.68,138.78,138.75,0.7]
[1763556238300,19.00096,138.79,138.76,3.33223466]
[1763556238699,19.00096,138.79,138.76,4.03223466]
[1763556239016,19.00096,138.79,138.76,3.33223466]
[1763556239224,0.68,138.78,138.76,3.33223466]
[1763556239902,19.00096,138.79,138.76,4.03223466]
[1763556240109,0.88,138.79,138.76,4.03223466]
[1763556240818,0.2,138.79,138.77,3.33223466]
[1763556241119,0.2,138.79,138.78,0.7]
[1763556241418,0.2,138.79,138.78,4.03223466]
[1763556242697,0.2,138.79,138.78,3.33223466]
[1763556243815,0.2,138.79,138.78,4.03223466]
[1763556253404,0.2,138.79,138.78,3.33223466]
[1763556256621,0.2,138.79,138.78,4.03223466]
[1763556258907,0.2,138.79,138.78,10.03655282]
[1763556259314,0.2,138.79,138.78,19.82538051]
[1763556261838,0.2,138.81,138.79,9.78882769]
[1763556262137,0.2,138.86,138.82,27.90978769]
[1763556262319,0.85,138.91,138.84,11.91973129]
[1763556262509,0.85,138.91,138.83,2.4]
[1763556262510,0.85,138.91,138.86,11.91973129]
[1763556262714,0.2,138.91,138.87,9.78882769]
[1763556263033,0.2,138.91,138.87,21.14334569]
[1763556263340,0.2,138.91,138.87,24.02945269]
[1763556263541,0.2,138.91,138.88,28.34380651]
[1763556264642,0.2,138.91,138.89,9.78882769]
[1763556264826,0.2,138.91,138.9,14.26973129]
[1763556266542,0.2,138.92,138.91,9.78882769]
[1763556266839,0.2,138.92,138.91,19.76863705]
[1763556267051,0.2,138.92,138.91,12.56973129]
[1763556267251,0.2,138.92,138.91,2.1309036]
[1763556267418,0.91,138.92,138.91,1.7]
[1763556267621,0.91,138.92,138.9,1.7]
[1763556267921,0.71,138.91,138.9,3.8309036]
[1763556269156,0.71,138.91,138.89,3.8309036]
[1763556269939,0.71,138.91,138.9,2.1309036]
[1763556270538,0.71,138.91,138.89,1.7]
[1763556270739,0.71,138.91,138.9,2.1309036]
[1763556272341,0.71,138.91,138.89,3.8309036]
[1763556272549,0.71,138.91,138.89,1.7]
[1763556273344,0.71,138.91,138.89,3.8309036]
[1763556274238,0.71,138.91,138.89,1.7]
[1763556274540,0.71,138.91,138.88,2.1309036]
[1763556275818,0.71,138.91,138.89,2.1309036]
[1763556276441,0.2,138.92,138.9,2.1309036]
[1763556276632,0.2,138.92,138.91,2.1309036]
[1763556276941,0.91,138.92,138.91,2.1309036]
[1763556278222,0.91,138.92,138.9,3.8309036]
[1763556278422,0.71,138.91,138.9,3.8309036]
[1763556278645,0.71,138.91,138.9,1.7]
[1763556278847,0.71,138.91,138.9,3.8309036]
[1763556280034,0.2,138.92,138.9,3.8309036]
[1763556280231,0.2,138.92,138.91,2.1309036]
[1763556282452,0.91,138.92,138.91,2.1309036]
[1763556283036,0.91,138.92,138.89,3.8309036]
[1763556283237,0.71,138.91,138.89,2.1309036]
[1763556287036,0.71,138.91,138.87,1.7]
[1763556287239,0.71,138.91,138.89,2.1309036]
[1763556290557,0.71,138.91,138.88,2.1309036]
[1763556294051,0.71,138.91,138.87,1.7]
[1763556294252,0.71,138.91,138.88,2.1309036]
[1763556299162,0.71,138.91,138.87,3.8309036]
[1763556299363,2.1309036,138.9,138.85,2.1309036]
[1763556299868,2.8409036,138.89,138.84,20.2518636]
[1763556300246,0.71,138.88,138.83,3.8309036]
[1763556300450,2.8409036,138.88,138.83,3.8309036]
[1763556300677,2.8409036,138.88,138.83,1.7]
[1763556300678,2.1309036,138.87,138.83,1.7]
[1763556301064,0.71,138.86,138.83,3.8309036]
[1763556301389,20.2518636,138.89,138.84,2.1309036]
[1763556301748,20.2518636,138.89,138.83,2.37]
[1763556301749,0.71,138.88,138.85,2.1309036]
[1763556302757,2.8409036,138.88,138.83,3.8309036]
[1763556302980,2.8409036,138.88,138.83,1.7]
[1763556303169,0.71,138.87,138.83,1.7]
[1763556303487,0.71,138.87,138.83,3.8309036]